bitfinex/quotes_SOLUSD_20260213
["timestamp","ask_amount","ask_price","bid_price","bid_amount"]
[1770944176564,0.64672655,78.258,78.231,0.63029604]
[1770944178369,0.64672655,78.239,78.216,31.96252625]
[1770944178567,0.64672655,78.239,78.207,31.96632718]
[1770944179167,0.64672655,78.239,78.208,0.63029604]
[1770944180257,0.64672655,78.237,78.205,12.7869062]
[1770944180464,0.64672655,78.229,78.205,12.7869062]
[1770944180670,0.64672655,78.229,78.185,58.66]
[1770944180671,0.64672655,78.219,78.194,12.78870501]
[1770944182082,0.64672655,78.219,78.187,0.63029604]
[1770944183161,4.61729252,78.266,78.191,0.63029604]
[1770944183364,8.98805807,78.24,78.201,0.63029604]
[1770944183764,8.98805807,78.23,78.187,0.63029604]
[1770944184563,8.98805807,78.22,78.189,0.63029604]
[1770944185288,0.64672655,78.219,78.189,0.63029604]
[1770944186069,0.64672655,78.219,78.188,12.78968639]
[1770944186997,0.64672655,78.219,78.181,13.42112757]
[1770944187181,0.64672655,78.209,78.181,12.79083153]
[1770944189469,0.64672655,78.219,78.182,0.63029604]
[1770944192090,0.64672655,78.219,78.184,0.64440672]
[1770944193698,0.68956574,78.209,78.185,12.79017714]
[1770944195596,38.58,78.225,78.18,32.17731684]
[1770944195597,0.68956574,78.233,78.191,0.65536126]
[1770944195769,0.68956574,78.288,78.221,0.65536126]
[1770944195970,0.68956574,78.269,78.23,9.64341933]
[1770944196170,0.68956574,78.269,78.231,0.65536126]
[1770944196665,4.61729252,78.278,78.231,0.65536126]
[1770944196666,0.68956574,78.259,78.231,0.65536126]
[1770944198087,0.68956574,78.257,78.221,45.40037857]
[1770944198282,0.68956574,78.249,78.221,44.74501731]
[1770944198694,0.68956574,78.249,78.222,0.65536126]
[1770944200174,0.68956574,78.249,78.221,44.74501731]
[1770944200175,0.68956574,78.249,78.224,0.65536126]
[1770944200375,31.94137433,78.269,78.223,12.78396379]
[1770944200376,0.68956574,78.269,78.231,0.65536126]
[1770944201504,0.68956574,78.269,78.232,12.78249309]
[1770944201685,0.68956574,78.269,78.232,13.43785435]
[1770944201880,0.68956574,78.269,78.24,8.98157082]
[1770944202080,0.68956574,78.269,78.233,0.65536126]
[1770944202394,0.68956574,78.259,78.224,58.8]
[1770944202599,0.68956574,78.259,78.227,12.78315072]
[1770944204099,0.68956574,78.257,78.227,13.43851198]
[1770944205685,0.68956574,78.257,78.228,0.65536126]
[1770944205891,0.68956574,78.257,78.231,0.65536126]
[1770944207800,0.68956574,78.257,78.232,12.78249309]
[1770944209609,0.68956574,78.257,78.233,0.65536126]
[1770944209998,0.68956574,78.257,78.234,12.78216632]
[1770944210201,0.68956574,78.257,78.235,0.65536126]
[1770944210393,40.92264486,78.27,78.235,0.65536126]
[1770944210394,0.68956574,78.269,78.235,0.65536126]
[1770944210708,0.68956574,78.268,78.235,0.65536126]
[1770944214218,0.68956574,78.266,78.236,12.78183956]
[1770944214520,8.98157082,78.26,78.232,12.78239199]
[1770944214711,0.68956574,78.259,78.233,0.65536126]
[1770944217034,0.68956574,78.257,78.233,0.65536126]
[1770944217307,0.68956574,78.257,78.234,12.78216632]
[1770944217511,0.68956574,78.257,78.235,0.65536126]
[1770944219205,0.68956574,78.269,78.24,4.0228708]
[1770944219416,0.68956574,78.269,78.241,0.65536126]
[1770944219707,4.0228708,78.28,78.241,0.65536126]
[1770944219708,0.68956574,78.278,78.241,0.65536126]
[1770944220806,12.77514467,78.277,78.251,0.69432114]
[1770944220992,4.0228708,78.29,78.251,0.69432114]
[1770944221305,0.72253752,78.29,78.261,0.69432114]
[1770944223116,0.72253752,78.298,78.271,0.69432114]
[1770944223908,0.2,78.3,78.271,0.69432114]
[1770944224413,0.2,78.3,78.281,0.69432114]
[1770944225107,0.2,78.3,78.271,0.69432114]
[1770944225415,0.92253752,78.3,78.271,0.69432114]
[1770944226409,0.2,78.3,78.271,0.69432114]
[1770944226722,0.2,78.3,78.255,44.72557663]
[1770944226723,0.72253752,78.299,78.265,0.69432114]
[1770944227030,0.72253752,78.297,78.267,0.69432114]
[1770944227793,0.72253752,78.297,78.266,12.77694017]
[1770944228191,0.72253752,78.297,78.265,0.69432114]
[1770944228403,0.72253752,78.297,78.271,0.69432114]
[1770944229909,0.2,78.3,78.262,0.69432114]
[1770944229910,0.72253752,78.295,78.262,0.69432114]
[1770944230516,0.72253752,78.293,78.264,0.69432114]
[1770944230817,0.72253752,78.289,78.254,0.69432114]
[1770944231006,0.72253752,78.279,78.25,8.97165328]
[1770944231209,0.72253752,78.279,78.251,12.7793894]
[1770944231516,44.70329781,78.294,78.237,0.69432114]
[1770944231517,0.72253752,78.269,78.237,0.69432114]
[1770944231721,0.72253752,78.278,78.251,0.69432114]
[1770944232601,0.72253752,78.278,78.253,0.69432114]
[1770944234526,0.72253752,78.278,78.254,12.77889948]
[1770944235916,0.72253752,78.278,78.254,13.47322062]
[1770944236325,0.72253752,78.278,78.254,0.69432114]
[1770944236828,0.72253752,78.278,78.255,12.77873618]
[1770944237007,0.72253752,78.299,78.271,0.69432114]
[1770944239020,0.72253752,78.299,78.272,12.77596075]
[1770944239229,0.72253752,78.299,78.273,0.69432114]
[1770944240127,0.72253752,78.299,78.275,0.69432114]
[1770944242016,12.77035148,78.307,78.277,0.69432114]
[1770944242228,0.72253752,78.305,78.277,0.69432114]
[1770944243312,12.77079152,78.304,78.277,0.69432114]
[1770944244539,0.72253752,78.289,78.25,4.01810988]
[1770944244829,44.70044317,78.299,78.25,4.01810988]
[1770944244830,0.72253752,78.298,78.261,0.69432114]
[1770944245210,0.72253752,78.298,78.271,0.69432114]
[1770944246329,0.72253752,78.289,78.255,0.69432114]
[1770944246538,0.72253752,78.279,78.252,12.77922609]
[1770944246708,0.72253752,78.279,78.253,0.69432114]
[1770944248513,0.72253752,78.269,78.232,0.69432114]
[1770944250130,0.72253752,78.268,78.232,0.69432114]
[1770944251240,0.68138303,78.266,78.234,0.72473666]
[1770944252723,12.77710343,78.265,78.235,12.78200293]
[1770944252925,0.68296998,78.286,78.25,4.01810988]
[1770944253227,0.68296998,78.286,78.251,0.69445325]
[1770944253537,0.68296998,78.286,78.25,4.01810988]
[1770944253538,0.1,78.32,78.281,0.69445325]
[1770944253743,4.11810988,78.32,78.281,0.69445325]
[1770944254036,0.1,78.32,78.29,4.71256313]
[1770944254240,0.1,78.32,78.29,0.69445325]
[1770944254420,4.11810988,78.32,78.29,0.69445325]
[1770944254821,4.11810988,78.32,78.255,4.61729252]
[1770944254822,4.01810988,78.31,78.281,0.69445325]
[1770944255223,4.01810988,78.31,78.274,0.69445325]
[1770944255521,4.01810988,78.3,78.274,0.69445325]
[1770944256125,0.68296998,78.305,78.274,0.69445325]
[1770944256527,4.70107986,78.3,78.274,0.69445325]
[1770944256728,0.68296998,78.299,78.274,0.69445325]
[1770944257944,0.68296998,78.299,78.275,12.77547109]
[1770944258121,0.68296998,78.299,78.275,13.46992434]
[1770944258444,0.68296998,78.299,78.276,0.69445325]
[1770944259852,0.68296998,78.289,78.258,12.77808843]
[1770944260036,39.34296998,78.288,78.259,0.69445325]
[1770944260341,39.34296998,78.288,78.261,0.69445325]
[1770944260547,38.66,78.287,78.271,0.69445325]
[1770944261839,38.68,78.286,78.271,0.69445325]
[1770944262839,12.77244635,78.294,78.271,0.69445325]
[1770944263026,38.7,78.293,78.273,0.69445325]
[1770944263635,0.68296998,78.289,78.26,0.69445325]
[1770944264838,38.72,78.288,78.262,0.69445325]
[1770944265038,38.72,78.287,78.262,0.69445325]
[1770944265437,38.72,78.286,78.262,0.69445325]
[1770944267060,38.72,78.286,78.264,0.69445325]
[1770944268149,0.68296998,78.296,78.264,0.69445325]
[1770944268456,0.68296998,78.294,78.264,0.69445325]
[1770944269761,0.68296998,78.289,78.263,12.77742994]
[1770944270835,0.68296998,78.289,78.264,0.69445325]
[1770944271851,12.77334968,78.288,78.264,0.69445325]
[1770944272233,13.45631966,78.288,78.264,0.69445325]
[1770944272435,0.68296998,78.287,78.264,0.69445325]
[1770944274253,4.01870913,78.29,78.257,0.69445325]
[1770944274254,0.68296998,78.285,78.257,0.69445325]
[1770944274547,12.773676,78.286,78.257,0.69445325]
[1770944275137,0.68296998,78.289,78.257,0.69445325]
[1770944277458,38.86,78.288,78.259,0.69445325]
[1770944277954,0.68296998,78.289,78.26,4.01870913]
[1770944278154,38.86,78.288,78.261,0.69445325]
[1770944278351,38.86,78.287,78.261,0.69445325]
[1770944279451,12.7727992,78.292,78.263,0.69445325]
[1770944279670,0.78296998,78.32,78.281,0.69445325]
[1770944279964,0.68296998,78.318,78.281,0.69445325]
[1770944280435,39.61391051,78.317,78.281,0.69445325]
[1770944280856,0.73391051,78.316,78.281,0.69445325]
[1770944281345,0.23391051,78.316,78.281,0.74651634]
[1770944281942,38.88,78.317,78.283,0.74651634]
[1770944282870,12.7686852,78.317,78.283,0.74651634]
[1770944283050,4.01870913,78.31,78.283,0.74651634]
[1770944283252,0.35832031,78.309,78.283,0.74651634]
[1770944284572,13.1286494,78.315,78.285,0.74651634]
[1770944285766,12.76894592,78.315,78.285,0.74651634]
[1770944285946,0.36244754,78.312,78.285,0.74651634]
[1770944286262,0.36244754,78.312,78.27,4.01870913]
[1770944286263,6.67650907,78.36,78.3,0.76536128]
[1770944286450,10.6952182,78.36,78.321,0.76536128]
[1770944286762,4.01870913,78.34,78.301,0.76536128]
[1770944286965,4.01870913,78.33,78.294,0.76536128]
[1770944287164,17.86,78.329,78.294,0.76536128]
[1770944287943,12.76682667,78.328,78.296,0.76536128]
[1770944288666,4.01870913,78.32,78.281,0.76536128]
[1770944288866,4.01870913,78.3,78.275,0.76536128]
[1770944289071,38.88,78.299,78.275,0.76536128]
[1770944289751,4.01870913,78.29,78.262,0.76536128]
[1770944289969,4.01870913,78.28,78.262,0.76536128]
[1770944290858,38.86,78.279,78.262,0.76536128]
[1770944291059,51.63481827,78.279,78.242,0.76536128]
[1770944291266,12.77481827,78.279,78.242,0.76536128]
[1770944291466,38.86,78.278,78.242,0.76536128]
[1770944291969,4.01870913,78.25,78.223,0.76536128]
[1770944292461,38.88,78.249,78.225,0.76536128]
[1770944292658,38.88,78.248,78.225,0.76536128]
[1770944293778,4.61729252,78.279,78.214,31.96354931]
[1770944293779,4.01870913,78.26,78.227,0.76536128]
[1770944293965,38.88,78.259,78.227,0.76536128]
[1770944294173,51.65808303,78.259,78.227,0.76536128]
[1770944294965,4.01870913,78.25,78.227,0.76536128]
[1770944295273,51.65808303,78.259,78.191,0.76536128]
[1770944295274,4.01870913,78.24,78.191,0.76536128]
[1770944295573,38.9,78.249,78.19,4.01870913]
[1770944295574,12.78298329,78.229,78.193,0.76536128]
[1770944295779,4.01870913,78.22,78.193,0.76536128]
[1770944295975,38.88,78.219,78.193,0.76536128]
[1770944296472,4.01870913,78.24,78.193,0.76536128]
[1770944296681,4.01870913,78.24,78.192,44.76161243]
[1770944296682,38.88,78.239,78.201,0.76536128]
[1770944296872,4.01870913,78.23,78.201,0.76536128]
[1770944297170,4.01870913,78.22,78.193,0.76536128]
[1770944297380,38.88,78.219,78.193,0.76536128]
[1770944297552,4.01870913,78.22,78.193,0.76536128]
[1770944297749,38.88,78.219,78.193,0.76536128]
[1770944297978,38.88,78.219,78.194,12.78870501]
[1770944298170,38.88,78.219,78.195,0.76536128]
[1770944299172,51.66461754,78.219,78.195,0.76536128]
[1770944299375,38.88,78.219,78.195,0.76536128]
[1770944299676,38.9,78.218,78.197,0.76536128]
[1770944299876,38.9,78.217,78.197,0.76536128]
[1770944300376,0.02116855,78.27,78.211,0.76536128]
[1770944300567,8.98977403,78.24,78.2,8.98977403]
[1770944300775,0.73391051,78.229,78.196,12.78837792]
[1770944301065,0.73391051,78.227,78.196,12.78837792]
[1770944301266,0.73391051,78.225,78.196,12.78837792]
[1770944302375,0.73391051,78.22,78.19,8.98977403]
[1770944302562,38.9,78.224,78.191,0.74651634]
[1770944302761,12.78065055,78.244,78.201,0.74651634]
[1770944302964,0.73391051,78.242,78.201,0.74651634]
[1770944303176,0.73391051,78.242,78.184,31.97544962]
[1770944303177,0.73391051,78.242,78.211,0.74651634]
[1770944303364,36.56288704,78.259,78.211,0.74651634]
[1770944303365,38.9,78.241,78.211,0.74651634]
[1770944304167,0.73391051,78.248,78.213,0.74651634]
[1770944304364,39.63391051,78.247,78.213,0.74651634]
[1770944304587,0.73391051,78.246,78.213,0.74651634]
[1770944305658,0.73391051,78.266,78.23,8.98977403]
[1770944305864,33.56,78.265,78.231,0.74651634]
[1770944306262,38.92,78.264,78.231,0.74651634]
[1770944307266,38.92,78.264,78.233,0.74651634]
[1770944307567,39.65391051,78.264,78.233,0.74651634]
[1770944310374,39.65391051,78.264,78.235,0.74651634]
[1770944311488,0.76556075,78.263,78.235,0.74651634]
[1770944311686,8.98977403,78.26,78.235,0.74651634]
[1770944312279,0.76556075,78.262,78.235,0.74651634]
[1770944312466,0.76556075,78.262,78.236,13.54774532]
[1770944312669,0.76556075,78.262,78.237,0.76590576]
[1770944313379,39.0,78.261,78.237,0.76590576]
[1770944315298,0.75079003,78.26,78.237,0.76590576]
[1770944315475,0.75079003,78.259,78.237,0.76590576]
[1770944315672,0.75079003,78.259,78.193,51.15494755]
[1770944315673,0.75079003,78.259,78.211,0.72765201]
[1770944315989,0.75079003,78.249,78.211,0.72765201]
[1770944316376,0.75079003,78.247,78.211,0.72765201]
[1770944317290,0.75079003,78.246,78.213,0.72765201]
[1770944318489,0.75079003,78.246,78.212,12.78576177]
[1770944318490,0.75079003,78.244,78.215,0.72765201]
[1770944320895,0.75079003,78.244,78.216,12.7851079]
[1770944321085,0.75079003,78.244,78.217,0.72765201]
[1770944322595,0.75079003,78.239,78.217,0.72765201]
[1770944323182,0.75079003,78.239,78.219,0.72765201]
[1770944323993,39.81079003,78.245,78.219,0.72765201]
[1770944324294,0.75079003,78.244,78.219,0.72765201]
[1770944324493,39.91079003,78.243,78.219,0.72765201]
[1770944325392,0.75079003,78.242,78.219,0.72765201]
[1770944326487,0.75079003,78.242,78.221,0.72765201]
[1770944331701,0.75079003,78.242,78.216,13.51264146]
[1770944331902,0.75079003,78.241,78.217,0.72765201]
[1770944332205,0.75079003,78.227,78.196,0.72765201]
[1770944332407,0.75079003,78.219,78.196,0.72765201]
[1770944333894,0.75079003,78.219,78.181,0.72765201]
[1770944334097,0.75079003,78.209,78.182,0.72765201]
[1770944334292,0.75079003,78.209,78.184,0.72765201]
[1770944334612,39.28,78.208,78.184,0.72765201]
[1770944334988,0.75079003,78.215,78.184,0.72765201]
[1770944335191,39.28,78.214,78.184,0.72765201]
[1770944335402,0.75079003,78.227,78.191,0.72765201]
[1770944335593,0.75079003,78.225,78.191,0.72765201]
[1770944335795,0.75079003,78.219,78.191,0.72765201]
[1770944336505,4.61729252,78.234,78.183,44.76676514]
[1770944336506,39.28,78.218,78.193,0.72765201]
[1770944336697,0.75079003,78.217,78.193,0.72765201]
[1770944336898,0.75079003,78.216,78.182,0.72765201]
[1770944337501,39.3,78.215,78.182,0.72765201]
[1770944338317,40.05079003,78.215,78.184,0.72765201]
[1770944338511,0.75079003,78.215,78.184,0.72765201]
[1770944338690,0.75079003,78.213,78.184,0.72765201]
[1770944339106,39.3,78.212,78.184,0.72765201]
[1770944339500,40.05079003,78.212,78.184,0.72765201]
[1770944340012,0.75079003,78.211,78.184,0.72765201]
[1770944341224,12.78608873,78.21,78.184,0.72765201]
[1770944341522,0.73014294,78.209,78.186,0.74936545]
[1770944344199,0.73014294,78.209,78.188,0.74936545]
[1770944345416,0.73014294,78.208,78.188,0.74936545]
[1770944346308,39.3,78.212,78.19,0.74936545]
[1770944346526,0.73014294,78.211,78.19,0.74936545]
[1770944347512,39.44,78.21,78.19,0.74936545]
[1770944348327,39.44,78.209,78.19,0.74936545]
[1770944349207,0.73014294,78.232,78.192,0.74936545]
[1770944349406,0.73014294,78.229,78.192,0.74936545]
[1770944349712,0.73014294,78.219,78.192,0.74936545]
[1770944350114,0.73014294,78.217,78.192,0.74936545]
[1770944351121,0.73014294,78.217,78.18,4.22484298]
[1770944351122,0.73014294,78.209,78.187,13.53913626]
[1770944351321,0.73014294,78.207,78.187,13.53913626]
[1770944351541,31.95936945,78.225,78.187,13.53913626]
[1770944351542,4.02484298,78.22,78.188,0.74936545]
[1770944351833,39.48,78.219,78.188,0.74936545]
[1770944352031,40.21014294,78.219,78.188,0.74936545]
[1770944352218,0.73014294,78.218,78.188,0.74936545]
[1770944352629,0.73014294,78.216,78.188,0.74936545]
[1770944353336,0.73014294,78.209,78.182,0.74936545]
[1770944354124,39.5,78.208,78.182,0.74936545]
[1770944354434,40.23014294,78.208,78.182,0.74936545]
[1770944355016,0.73014294,78.207,78.182,0.74936545]
[1770944355537,0.73014294,78.207,78.184,0.74936545]
[1770944359140,39.5,78.208,78.186,0.74936545]
[1770944359728,0.73014294,78.213,78.186,0.74936545]
[1770944359930,39.58,78.207,78.186,0.74936545]
[1770944360539,39.58,78.206,78.186,0.74936545]
[1770944360839,39.58,78.205,78.186,0.74936545]
[1770944361044,0.73014294,78.213,78.188,0.74936545]
[1770944361219,39.6,78.204,78.188,0.74936545]
[1770944361420,0.73014294,78.213,78.188,0.74936545]
[1770944361638,39.6,78.212,78.188,0.74936545]
[1770944362346,0.73014294,78.211,78.188,0.74936545]
[1770944362833,39.62,78.21,78.188,0.74936545]
[1770944363246,0.73014294,78.211,78.188,0.74936545]
[1770944363247,39.62,78.209,78.188,0.74936545]
[1770944363749,0.73014294,78.209,78.19,0.74936545]
[1770944363946,39.62,78.208,78.19,0.74936545]
[1770944364236,12.78561024,78.213,78.19,0.74936545]
[1770944364442,39.64,78.207,78.19,0.74936545]
[1770944365335,0.73014294,78.212,78.19,0.74936545]
[1770944365536,39.64,78.206,78.19,0.74936545]
[1770944366247,0.73014294,78.212,78.19,0.74936545]
[1770944366435,39.66,78.205,78.19,0.74936545]
[1770944373345,39.78,78.204,78.19,0.74936545]
[1770944374234,0.78749801,78.222,78.192,0.73803367]
[1770944374434,39.8,78.221,78.192,0.73803367]
[1770944374634,39.8,78.221,78.194,0.73803367]
[1770944374836,0.78749801,78.22,78.194,0.73803367]
[1770944375440,39.8,78.219,78.194,0.73803367]
[1770944375640,40.58749801,78.219,78.194,0.73803367]
[1770944375836,0.78749801,78.218,78.194,0.73803367]
[1770944376549,0.78749801,78.218,78.196,0.73803367]
[1770944379260,0.78749801,78.218,78.191,0.73803367]
[1770944379957,0.78749801,78.216,78.191,0.73803367]
[1770944380138,0.78749801,78.209,78.185,0.73803367]
[1770944380343,39.88,78.208,78.185,0.73803367]
[1770944380544,39.88,78.207,78.185,0.73803367]
[1770944382364,40.66749801,78.207,78.185,13.52813876]
[1770944382665,40.66749801,78.207,78.186,0.73803367]
[1770944384165,0.78749801,78.206,78.186,0.73803367]
[1770944384362,0.78749801,78.206,78.187,12.78984997]
[1770944384655,0.78749801,78.206,78.188,0.73803367]
[1770944387355,39.88,78.207,78.188,0.73803367]
[1770944389062,40.66749801,78.207,78.188,0.73803367]
[1770944389643,39.88,78.207,78.188,0.73803367]
[1770944389847,0.78749801,78.206,78.188,0.73803367]
[1770944390043,0.78749801,78.199,78.18,0.2]
[1770944390243,0.78749801,78.197,78.18,0.2]
[1770944390453,0.78749801,78.189,78.167,0.73803367]
[1770944390656,40.02,78.196,78.141,0.73803367]
[1770944390657,0.78749801,78.179,78.141,0.73803367]
[1770944390861,0.78749801,78.169,78.142,0.73803367]
[1770944391047,0.78749801,78.167,78.142,0.73803367]
[1770944392177,0.78749801,78.165,78.142,0.73803367]
[1770944392664,0.78749801,78.159,78.14,0.2]
[1770944392863,40.02,78.158,78.14,0.2]
[1770944393171,0.78749801,78.157,78.14,0.2]
[1770944394871,0.78749801,78.155,78.14,0.2]
[1770944395248,0.78749801,78.149,78.13,0.2]
[1770944397368,4.0283278,78.15,78.121,0.73803367]
[1770944397369,40.1,78.148,78.121,0.73803367]
[1770944397567,0.78749801,78.156,78.122,0.73803367]
[1770944397765,40.1,78.147,78.122,0.73803367]
[1770944400174,40.88749801,78.147,78.124,0.73803367]
[1770944400370,0.78749801,78.157,78.124,0.73803367]
[1770944400575,40.1,78.156,78.124,0.73803367]
[1770944400774,0.78122285,78.165,78.131,0.77733593]
[1770944401076,0.78122285,78.163,78.131,0.77733593]
[1770944401273,4.03300367,78.17,78.123,44.8011469]
[1770944401274,0.78122285,78.177,78.141,0.77733593]
[1770944401582,0.78122285,78.175,78.141,0.77733593]
[1770944402475,0.78122285,78.173,78.143,0.77733593]
[1770944403375,0.78122285,78.171,78.143,0.77733593]
[1770944404693,0.78122285,78.185,78.161,0.77733593]
[1770944405568,0.78122285,78.183,78.161,0.77733593]
[1770944406273,40.14,78.184,78.161,0.77733593]
[1770944406680,0.78122285,78.183,78.163,0.77733593]
[1770944407380,40.14,78.184,78.163,0.77733593]
[1770944407674,0.78122285,78.197,78.171,0.77733593]
[1770944408468,0.78122285,78.197,78.14,51.18986508]
[1770944408469,0.78122285,78.189,78.15,4.03300367]
[1770944408668,0.78122285,78.189,78.105,51.21269589]
[1770944408669,0.78122285,78.159,78.128,0.77733593]
[1770944408968,4.61729252,78.175,78.122,0.77733593]
[1770944408969,0.78122285,78.149,78.122,0.77733593]
[1770944409165,0.78122285,78.149,78.124,0.77733593]
[1770944409370,0.78122285,78.157,78.124,0.77733593]
[1770944409980,40.14,78.156,78.124,0.77733593]
[1770944410285,4.61729252,78.175,78.12,4.23300367]
[1770944410286,12.79341898,78.166,78.126,0.77733593]
[1770944410579,12.79341898,78.166,78.131,0.77733593]
[1770944410580,40.14,78.165,78.131,0.77733593]
[1770944410776,0.78122285,78.179,78.141,0.77733593]
[1770944410978,40.14,78.178,78.141,0.77733593]
[1770944411171,0.78122285,78.177,78.141,0.77733593]
[1770944411369,0.78122285,78.175,78.141,0.77733593]
[1770944411578,0.78122285,78.169,78.131,0.77733593]
[1770944411770,0.78122285,78.159,78.131,0.77733593]
[1770944411969,0.78122285,78.157,78.131,0.77733593]
[1770944412366,0.78122285,78.155,78.133,0.77733593]
[1770944413601,31.98159586,78.17,78.131,12.79891643]
[1770944413602,0.78122285,78.174,78.141,0.77733593]
[1770944413805,40.16,78.173,78.141,0.77733593]
[1770944414664,0.78122285,78.172,78.143,0.77733593]
[1770944415291,40.16,78.173,78.143,0.77733593]
[1770944416275,40.94122285,78.173,78.143,0.77733593]
[1770944416966,40.94122285,78.173,78.145,0.77733593]
[1770944417392,40.18,78.172,78.145,0.77733593]
[1770944418579,40.18,78.18,78.151,0.77733593]
[1770944418996,40.18,78.184,78.153,0.77733593]
[1770944419192,40.18,78.184,78.161,0.77733593]
[1770944419392,40.2,78.189,78.161,0.77733593]
[1770944419885,13.56747507,78.209,78.171,0.77733593]
[1770944420095,0.78122285,78.209,78.171,0.77733593]
[1770944420262,0.78122285,78.208,78.171,0.77733593]
[1770944420467,0.78122285,78.199,78.171,0.77733593]
[1770944420664,0.78122285,78.199,78.164,0.77733593]
[1770944420886,0.78122285,78.189,78.152,44.78452246]
[1770944421092,0.78122285,78.185,78.155,0.77733593]
[1770944422591,0.78122285,78.179,78.15,12.79587803]
[1770944422883,0.78122285,78.179,78.151,0.77733593]
[1770944423466,0.78122285,78.179,78.153,0.77733593]
[1770944423865,0.78122285,78.179,78.12,9.59386555]
[1770944423866,41.00122285,78.178,78.148,0.77733593]
[1770944424084,12.79121591,78.179,78.121,13.57799132]
[1770944424085,0.78122285,78.159,78.121,13.57799132]
[1770944424282,0.78122285,78.149,78.121,13.57799132]
[1770944424484,0.78122285,78.147,78.121,13.57799132]
[1770944425482,0.78122285,78.146,78.12,0.2]
[1770944425688,0.78122285,78.139,78.12,0.2]
[1770944426273,0.78122285,78.146,78.121,0.77733593]
[1770944426671,0.78122285,78.146,78.12,0.2]
[1770944426894,0.78122285,78.139,78.12,0.2]
[1770944427095,0.78122285,78.146,78.121,0.77733593]
[1770944428195,0.78122285,78.146,78.12,0.2]
[1770944428196,40.26,78.145,78.123,0.77733593]
[1770944428400,40.26,78.144,78.123,0.77733593]
[1770944428600,4.81422652,78.16,78.123,0.77733593]
[1770944428801,4.81422652,78.16,78.122,12.80049153]
[1770944428802,40.26,78.159,78.131,0.77733593]
[1770944429101,40.26,78.158,78.131,0.77733593]
[1770944429696,40.26,78.158,78.132,0.77733593]
[1770944430708,40.26,78.161,78.132,0.77733593]
[1770944430876,0.78122285,78.166,78.132,0.77733593]
[1770944431199,40.28,78.165,78.132,0.77733593]
[1770944431400,40.26,78.164,78.132,0.77733593]
[1770944431777,0.78122285,78.166,78.134,0.73951506]
[1770944432096,12.79001941,78.186,78.151,0.73951506]
[1770944432276,0.75301151,78.188,78.151,0.73951506]
[1770944432483,0.75301151,78.186,78.151,0.73951506]
[1770944433781,38.28,78.187,78.153,0.78659556]
[1770944434297,40.28,78.188,78.153,0.78659556]
[1770944435196,40.28,78.188,78.155,0.78659556]
[1770944435398,0.75860905,78.189,78.155,0.78659556]
[1770944435573,0.75860905,78.188,78.155,0.78659556]
[1770944437193,0.75860905,78.186,78.156,12.79492297]
[1770944439479,0.75860905,78.179,78.141,0.78659556]
[1770944439683,0.75860905,78.177,78.141,0.78659556]
[1770944440194,0.75860905,78.199,78.161,0.78659556]
[1770944440396,0.75860905,78.197,78.161,0.78659556]
[1770944440897,0.75860905,78.219,78.181,0.78659556]
[1770944441105,41.05860905,78.218,78.181,0.78659556]
[1770944441281,0.75860905,78.209,78.181,0.78659556]
[1770944441487,0.75860905,78.207,78.162,0.78659556]
[1770944441709,0.75860905,78.207,78.171,0.78659556]
[1770944442287,0.75860905,78.199,78.171,0.78659556]
[1770944442485,0.75860905,78.207,78.171,0.78659556]
[1770944442798,12.78551847,78.214,78.181,0.78659556]
[1770944443195,4.79161272,78.22,78.181,0.78659556]
[1770944443395,53.10461754,78.219,78.181,0.78659556]
[1770944443587,53.10461754,78.219,78.183,0.78659556]
[1770944443785,53.86322659,78.219,78.183,0.78659556]
[1770944444310,0.75860905,78.218,78.183,0.78659556]
[1770944447110,0.75860905,78.218,78.185,0.78659556]
[1770944448010,0.75860905,78.216,78.185,0.78659556]
[1770944448302,0.75860905,78.209,78.178,0.78659556]
[1770944448818,0.75860905,78.199,78.167,12.79307026]
[1770944449022,0.75860905,78.197,78.167,12.79307026]
[1770944449304,0.75860905,78.197,78.167,13.57966582]
[1770944449696,0.75860905,78.197,78.168,0.78659556]
[1770944451295,0.75860905,78.197,78.17,0.78659556]
[1770944452194,40.4,78.201,78.171,0.78659556]
[1770944453016,0.75860905,78.207,78.171,0.78659556]
[1770944453492,0.75860905,78.207,78.173,0.78659556]
[1770944455598,0.75860905,78.206,78.175,0.78659556]
[1770944456300,0.75860905,78.199,78.167,0.78659556]
[1770944457190,0.75860905,78.199,78.17,12.79261855]
[1770944457398,0.75860905,78.197,78.171,0.78659556]
[1770944458309,0.75860905,78.204,78.171,0.78659556]
[1770944458508,0.75860905,78.203,78.171,0.78659556]
[1770944459308,12.78739674,78.202,78.172,12.79230414]
[1770944459514,12.78739674,78.202,78.173,0.78659556]
[1770944459916,0.75860905,78.201,78.173,0.78659556]
[1770944461416,0.75860905,78.201,78.112,51.20825361]
[1770944461417,0.75860905,78.201,78.175,0.80206527]
[1770944461598,12.78717037,78.204,78.175,0.80206527]
[1770944462195,40.48,78.203,78.175,0.80206527]